bitfinex-derivatives/quotes_ETHF0:USTF0_20251006
["timestamp","ask_amount","ask_price","bid_price","bid_amount"]
[1759736400718,0.7299,4552.6,4552.5,1.36136]
[1759736400921,0.7299,4552.6,4552.5,42.16136]
[1759736401434,0.3344,4553.0,4552.9,0.39523]
[1759736401622,0.5516,4553.0,4552.9,0.4324]
[1759736402022,0.8573,4553.0,4552.9,0.4324]
[1759736403221,0.3057,4552.9,4552.8,3.2078]
[1759736403418,0.7299,4552.9,4552.8,3.4289]
[1759736403828,0.7299,4552.9,4552.8,3.6402]
[1759736405027,1.50197697,4552.9,4552.8,3.2078]
[1759736405227,0.3057,4552.8,4552.5,40.80272575]
[1759736405427,0.5127,4552.6,4552.5,40.80272575]
[1759736405833,0.5127,4552.6,4552.5,41.11542575]
[1759736406223,0.3057,4552.6,4552.5,41.11542575]
[1759736408039,0.3057,4552.6,4552.5,40.80272575]
[1759736410035,0.9509,4552.6,4552.5,0.00272575]
[1759736411732,0.701,4552.1,4552.0,40.8]
[1759736411932,1.47307697,4552.1,4552.0,40.8]
[1759736412432,0.4242,4551.4,4551.3,3.4289]
[1759736412634,1.50197697,4551.4,4551.3,3.6402]
[1759736412937,0.5147068,4551.4,4551.3,44.75528201]
[1759736413137,0.0020068,4551.4,4551.3,44.75528201]
[1759736413437,0.3077068,4551.4,4551.3,44.75528201]
[1759736413834,0.3077068,4551.4,4551.3,44.01018201]
[1759736414639,0.3077068,4551.4,4551.3,40.80238201]
[1759736415034,0.5287068,4551.4,4551.3,40.80238201]
[1759736415440,0.9529068,4551.4,4551.3,0.00238201]
[1759736415734,0.9529068,4551.4,4550.5,0.3127]
[1759736415735,0.39539,4551.0,4550.5,0.3127]
[1759736415937,0.77207697,4550.8,4550.7,40.8]
[1759736416140,1.07777697,4550.8,4550.7,40.8]
[1759736416938,1.07777697,4550.8,4550.7,40.80178037]
[1759736417638,1.07777697,4550.8,4550.7,41.13168037]
[1759736418037,1.07777697,4550.8,4550.7,40.80178037]
[1759736418237,1.07777697,4550.8,4550.7,41.13168037]
[1759736418830,1.07777697,4550.8,4550.7,40.80178037]
[1759736420044,0.3057,4550.8,4550.7,41.13168037]
[1759736421541,1.07777697,4550.8,4550.7,41.13168037]
[1759736423037,1.07777697,4550.8,4550.7,40.80178037]
[1759736424834,1.50577697,4550.8,4550.7,0.00178037]
[1759736425035,1.50577697,4550.8,4550.7,0.22078037]
[1759736425240,1.50577697,4550.8,4550.7,0.00178037]
[1759736425641,0.7337,4550.8,4550.7,0.00178037]
[1759736428544,0.7337,4550.8,4550.7,0.22078037]
[1759736428746,0.7337,4550.8,4550.7,0.76938037]
[1759736429440,0.5267,4550.8,4550.7,0.76938037]
[1759736429749,0.7496,4550.8,4550.7,0.76938037]
[1759736429946,3.2078,4551.0,4550.7,0.76938037]
[1759736430145,1.11158377,4551.4,4551.2,0.72527]
[1759736430345,0.221,4551.3,4551.2,1.16297]
[1759736430849,0.221,4551.3,4551.2,0.7676]
[1759736431238,0.77408377,4551.4,4551.2,0.83308]
[1759736431443,0.0020068,4551.4,4551.3,0.7676]
[1759736431738,0.2230068,4551.4,4551.3,0.7676]
[1759736432947,0.0020068,4551.4,4551.3,4.74747697]
[1759736433344,0.0020068,4551.4,4551.3,3.9754]
[1759736433548,0.0020068,4551.4,4551.3,44.7754]
[1759736435447,0.3265068,4551.4,4551.3,44.7754]
[1759736435647,0.7684068,4551.4,4550.7,0.00178037]
[1759736435841,1.53847697,4550.8,4550.7,0.21148037]
[1759736436042,1.75947697,4550.8,4550.7,0.00178037]
[1759736436547,1.75947697,4550.8,4550.7,0.42328037]
[1759736437045,1.75947697,4550.8,4550.7,0.00178037]
[1759736437240,1.75947697,4550.8,4550.7,0.21148037]
[1759736440251,6.75947697,4550.8,4550.7,0.00178037]
[1759736440453,1.16185,4550.4,4550.3,0.04636806]
[1759736440652,2.15492697,4550.4,4550.3,0.04636806]
[1759736440853,1.75947697,4550.4,4550.3,0.04636806]
[1759736441456,1.75947697,4550.4,4550.3,0.0479242]
[1759736442250,4.56187374,4550.4,4550.3,0.0479242]
[1759736442451,0.7664,4549.1,4549.0,3.6293]
[1759736442656,1.53847697,4549.1,4549.0,3.6293]
[1759736442851,0.3245,4549.1,4549.0,3.9522]
[1759736443058,0.221,4549.2,4549.1,1.13996]
[1759736443551,0.5455,4549.2,4549.1,1.14179227]
[1759736443753,0.3245,4549.5,4549.4,1.13993]
[1759736443957,1.31827697,4549.9,4549.8,1.1399]
[1759736444154,1.31827697,4549.9,4549.1,0.77390924]
[1759736444155,1.09657697,4550.2,4550.1,0.81697]
[1759736444348,1.75947697,4550.2,4550.1,0.2118]
[1759736444561,0.7664,4549.6,4549.5,0.2097]
[1759736444758,1.75947697,4549.6,4549.5,0.2097]
[1759736445258,0.1234,4549.5,4549.2,40.8]
[1759736445460,0.4419,4549.3,4549.2,40.8]
[1759736445665,1.53847697,4549.3,4549.2,40.8]
[1759736446556,0.1234,4549.5,4549.2,40.8]
[1759736446557,0.3245,4549.5,4549.4,0.4215]
[1759736446752,0.8898,4549.5,4549.4,0.2097]
[1759736446959,0.5653,4549.5,4549.2,40.8]
[1759736447264,1.53847697,4549.3,4549.2,40.8]
[1759736447763,1.31827697,4549.3,4549.2,41.1229]
[1759736447965,0.99307697,4549.3,4549.2,41.1229]
[1759736448566,1.30647697,4549.3,4549.2,44.3307]
[1759736449863,0.1234,4549.5,4549.2,44.3307]
[1759736449864,1.42357697,4549.4,4549.3,0.4329]
[1759736450168,1.42357697,4549.4,4549.3,0.2214]
[1759736450366,1.73697697,4549.4,4549.3,0.2214]
[1759736450558,1.42357697,4549.4,4549.2,40.8]
[1759736450759,0.7439,4549.2,4548.1,3.2078]
[1759736450965,0.869,4548.0,4547.9,0.24338841]
[1759736451160,1.09,4548.0,4547.9,0.45488841]
[1759736451366,1.09,4548.0,4547.9,41.25488841]
[1759736451665,0.8805,4548.0,4547.9,41.58848841]
[1759736451867,0.75726898,4548.0,4547.9,41.59072619]
[1759736452070,0.22286898,4548.0,4547.9,41.59072619]
[1759736452261,1.09186898,4548.0,4547.9,0.79072619]
[1759736452460,1.09186898,4548.0,4547.9,0.45712619]
[1759736452772,1.86394595,4548.0,4547.9,41.04562619]
[1759736453271,0.53626898,4548.0,4547.9,41.37922619]
[1759736453460,0.31526898,4548.0,4547.9,41.37922619]
[1759736453863,0.53626898,4548.0,4547.9,41.37922619]
[1759736454067,0.66136898,4548.0,4547.9,41.04562619]
[1759736454272,0.53626898,4548.0,4547.9,41.37922619]
[1759736454572,0.00186898,4548.0,4547.9,41.37922619]
[1759736455873,0.1251,4548.5,4547.9,41.37922619]
[1759736455874,0.3461,4548.5,4548.4,0.2115]
[1759736456063,0.6595,4548.5,4548.4,3.6407]
[1759736456664,0.869,4548.5,4548.4,3.6407]
[1759736456870,0.87116744,4548.5,4548.4,3.6407]
[1759736457070,0.87116744,4548.5,4547.9,44.03202619]
[1759736457371,0.87116744,4548.5,4547.9,0.02422619]
[1759736457372,0.869,4548.0,4547.9,0.02422619]
[1759736457568,1.09,4548.0,4547.9,0.02422619]
[1759736459670,0.869,4548.0,4547.9,0.02422619]
[1759736460068,1.09,4548.0,4547.9,0.02422619]
[1759736463276,3.96330993,4548.0,4547.9,0.02422619]
[1759736465268,0.869,4547.0,4546.9,3.82495]
[1759736465578,0.7439,4547.3,4547.2,0.2214]
[1759736465774,0.9649,4547.3,4547.2,0.2214]
[1759736465970,0.7439,4546.8,4546.7,0.2214]
[1759736466177,0.9649,4546.8,4546.7,0.22362938]
[1759736466372,0.9649,4546.8,4546.7,41.02362938]
[1759736466973,0.221,4546.8,4546.7,41.35722938]
[1759736467573,0.5344,4546.8,4546.7,0.22362938]
[1759736467773,0.9649,4546.8,4546.7,0.00222938]
[1759736467980,0.4305,4546.1,4546.0,0.2214]
[1759736468184,0.442,4546.1,4546.0,0.4329]
[1759736468372,0.4305,4545.8,4545.7,0.82875]
[1759736468579,0.7439,4545.8,4545.7,0.82875]
[1759736468776,0.7439,4545.8,4545.7,41.2329]
[1759736468972,0.7439,4545.8,4545.7,41.23570156]
[1759736469183,0.3134,4545.8,4545.7,41.56930156]
[1759736469377,0.869,4546.0,4545.9,0.4329]
[1759736469583,0.3134,4545.9,4545.7,40.80280156]
[1759736469777,0.7439,4545.9,4545.8,0.2214]
[1759736470380,0.7439,4545.9,4545.7,40.80280156]
[1759736470381,0.4305,4545.9,4545.7,40.80280156]
[1759736470583,0.3134,4545.8,4545.7,40.80280156]
[1759736471383,0.3134,4545.8,4545.7,41.13640156]
[1759736471582,0.3134,4545.8,4545.7,44.34420156]
[1759736471983,0.4305,4546.1,4546.0,0.2115]
[1759736472182,0.6515,4546.1,4546.0,0.4329]
[1759736472679,0.9649,4546.1,4546.0,0.4329]
[1759736472876,0.9649,4546.1,4545.7,40.80280156]
[1759736472877,0.7439,4545.8,4545.7,40.80280156]
[1759736473080,0.7439,4545.8,4545.7,0.22420156]
[1759736473584,0.5344,4545.8,4545.7,0.76930156]
[1759736473781,0.3134,4545.8,4545.7,0.76930156]
[1759736473986,0.4385,4546.0,4545.9,0.4329]
[1759736474274,0.6595,4546.0,4545.9,0.7665]
[1759736474481,0.7554,4546.0,4545.9,0.7665]
[1759736474782,0.3134,4546.4,4545.9,0.7665]
[1759736474985,0.7554,4546.3,4546.2,0.7665]
[1759736475979,0.1251,4546.5,4546.2,0.7665]
[1759736476180,0.1251,4547.0,4546.5,1.16229]
[1759736476382,3.7422,4546.6,4546.5,1.16229]
[1759736476779,3.9632,4546.6,4546.5,1.16229]
[1759736477378,3.2078,4546.6,4546.5,6.26049]
[1759736477687,0.7682,4546.6,4546.5,0.2214]
[1759736478074,0.7682,4546.6,4546.5,0.444]
[1759736478778,0.7682,4546.6,4546.0,40.8514]
[1759736478779,0.7547,4546.1,4546.0,40.8]
[1759736478974,0.7547,4546.1,4545.7,0.00280156]
[1759736478975,0.7547,4545.8,4545.7,0.00280156]
[1759736479178,0.7547,4545.8,4545.7,0.21860156]
[1759736479383,0.7547,4545.8,4545.7,0.44120156]
[1759736479781,0.7547,4545.8,4545.7,0.00280156]
[1759736480082,0.5399,4545.8,4545.7,0.44120156]
[1759736480288,0.5399,4545.8,4545.7,41.57850156]
[1759736480586,0.5399,4545.8,4545.7,41.24120156]
[1759736480987,1.15055,4545.8,4545.7,0.00280156]
[1759736481284,0.7547,4545.8,4545.7,0.00280156]
[1759736481488,0.7547,4545.8,4545.7,0.39866156]
[1759736481683,0.7547,4545.8,4545.7,0.00280156]
[1759736482583,0.7547,4545.8,4544.9,3.2078]
[1759736482584,5.7547,4545.8,4544.9,3.2078]
[1759736482891,5.7547,4545.8,4544.4,3.2078]
[1759736482892,0.8885,4544.5,4544.4,3.2078]
[1759736483080,1.1095,4544.5,4544.4,3.4236]
[1759736483588,1.11126469,4544.5,4544.4,3.21017427]
[1759736484487,4.31906469,4544.5,4544.4,0.00237427]
[1759736484983,4.31906469,4544.5,4544.4,0.21817427]
[1759736485180,7.15023243,4544.5,4544.4,0.00237427]
[1759736485381,7.54619243,4544.5,4544.4,0.00237427]
[1759736486085,12.54619243,4544.5,4544.4,0.00237427]
[1759736486488,0.7547,4543.3,4543.2,3.6462]
[1759736486677,0.5399,4543.3,4543.2,3.9835]
[1759736486881,0.5399,4543.3,4543.2,44.7835]
[1759736487077,0.3324,4543.3,4543.2,44.7835]
[1759736487284,0.221,4543.4,4543.3,1.17176]
[1759736487486,0.7609,4543.4,4543.3,1.17404956]
[1759736489392,0.9757,4543.4,4543.3,0.83674956]
[1759736489691,0.3324,4543.4,4543.3,1.17404956]
[1759736489885,0.7547,4543.4,4543.3,0.83674956]
[1759736490085,0.5399,4543.4,4543.3,1.17404956]
[1759736490581,0.221,4543.6,4543.5,0.39605]
[1759736490785,0.221,4543.6,4543.5,1.27275]
[1759736491791,0.5534,4544.0,4543.9,0.83441]
[1759736491994,0.5534,4544.0,4543.9,1.17171]
[1759736492493,0.7609,4544.0,4543.9,1.17171]
[1759736492897,0.8947,4544.0,4543.9,0.7757]
[1759736493193,1.1095,4544.0,4543.3,0.00228956]
[1759736493491,1.1095,4544.0,4543.6,0.39603]
[1759736493693,1.1095,4544.0,4543.3,0.00228956]
[1759736493895,1.1095,4544.0,4543.9,0.83441]
[1759736494084,1.1095,4544.0,4543.9,0.4384]
[1759736494589,1.1095,4544.0,4543.9,0.2158]
[1759736495092,0.2195,4543.8,4543.7,0.2236]
[1759736495294,0.7641,4543.8,4543.7,0.2236]
[1759736495696,0.7641,4543.8,4543.7,0.4415]
[1759736495895,0.7641,4543.8,4543.7,0.2236]
[1759736496196,0.7641,4543.8,4543.6,0.39603]
[1759736496399,0.7641,4543.8,4543.7,0.2236]
[1759736497401,0.7641,4543.4,4543.3,0.22588956]
[1759736497609,0.9851,4543.4,4543.3,0.00228956]
[1759736498703,1.38116,4543.4,4543.3,0.00228956]
[1759736499309,4.24376068,4543.4,4543.3,9.56e-06]
[1759736499702,9.24376068,4543.4,4543.3,9.56e-06]
[1759736500208,0.4325,4541.7,4541.6,3.82829741]
[1759736500511,0.5446,4541.7,4541.6,4.54210741]
[1759736500807,0.3316,4541.9,4541.8,0.3962]
[1759736501106,0.5446,4542.4,4542.3,0.83765]
[1759736501411,0.5446,4542.4,4542.3,1.15525]
[1759736502006,0.7641,4542.4,4542.3,0.83765]
[1759736502205,0.7641,4542.4,4542.3,0.4415]
[1759736503607,0.7641,4542.4,4542.3,0.2236]
[1759736504407,0.4325,4542.4,4542.1,3.2078]
[1759736504607,0.7641,4541.9,4541.8,0.22531754]
[1759736504812,0.9851,4541.9,4541.8,0.00171754]
[1759736505603,0.9851,4541.9,4541.8,0.22531754]
[1759736507403,1.38129,4541.9,4541.8,0.00171754]
[1759736507607,0.9851,4541.9,4541.8,0.22531754]
[1759736507804,0.7641,4541.9,4541.8,0.43341754]
[1759736508114,0.9851,4541.9,4541.8,0.43341754]
[1759736508413,0.9851,4541.9,4541.8,0.82961754]
[1759736508911,0.5365,4542.3,4542.2,1.16256]
[1759736509214,0.9812,4542.3,4542.2,0.4346]
[1759736510012,0.9812,4542.3,4542.2,0.7664]
[1759736510410,0.6641,4542.5,4542.4,0.7664]
[1759736510609,0.323,4542.7,4542.5,0.72793]
[1759736510810,0.8878,4543.0,4542.9,0.4346]
[1759736511012,1.1088,4543.0,4542.9,0.4346]
[1759736511319,1.1088,4543.0,4542.9,41.2346]
[1759736512014,0.2135,4543.0,4542.9,40.8]
[1759736512210,0.2135,4543.0,4542.9,41.1318]
[1759736512411,3.6423,4543.3,4543.2,0.4346]
[1759736512606,4.189,4543.3,4543.2,0.4346]
[1759736512807,4.189,4543.3,4543.2,0.2265]
[1759736513818,0.9812,4543.3,4543.2,0.4346]
[1759736514312,0.7575,4543.3,4543.2,0.4346]
[1759736514514,0.9812,4543.3,4543.2,0.4346]
[1759736514716,0.9812,4543.3,4543.2,0.2265]
[1759736515014,0.323,4543.5,4543.3,1.71803]
[1759736515212,0.323,4543.9,4543.8,1.16242]
[1759736515411,4.189,4544.3,4544.2,0.4346]
[1759736515822,3.4288,4544.3,4544.2,0.7664]
[1759736516019,0.00176469,4544.5,4544.4,0.2265]
[1759736516219,0.00176469,4544.5,4544.4,0.7664]
[1759736516620,0.00176469,4544.5,4544.4,5.7664]
[1759736516915,0.5365,4545.8,4545.7,0.83046]
[1759736517118,3.2078,4545.9,4545.8,0.7664]
[1759736517510,3.5308,4545.9,4545.8,0.7664]
[1759736517710,3.53340144,4545.9,4545.8,0.7680509]
[1759736517912,3.21040144,4545.9,4545.8,0.7680509]
[1759736518622,3.74690144,4545.9,4545.8,0.7680509]
[1759736518820,3.97060144,4545.9,4545.8,0.0016509]
[1759736519220,0.8895,4544.5,4544.3,0.39597]
[1759736520123,0.6658,4544.5,4544.4,40.80206837]
[1759736520324,0.5365,4544.5,4544.4,41.13386837]
[1759736520520,0.5365,4544.5,4544.4,40.80206837]
[1759736520521,0.8868,4544.5,4544.4,40.80206837]
[1759736520720,4.3183,4544.5,4544.4,0.00206837]
[1759736521117,4.3183,4544.5,4544.4,0.62453837]
[1759736521322,4.3183,4544.5,4544.4,0.22856837]
[1759736521626,4.71426,4544.5,4544.4,0.00206837]
[1759736522122,7.15333562,4544.5,4544.4,0.00206837]
[1759736522817,0.4372,4543.4,4543.3,40.8]
[1759736523018,0.5365,4543.3,4543.2,3.83037]
[1759736523222,0.5365,4543.8,4543.7,0.2265]
[1759736523419,0.5365,4543.8,4543.7,0.4346]
[1759736523624,0.323,4543.8,4543.7,3.9742]
[1759736523828,0.5365,4543.8,4543.7,3.6424]
[1759736524024,0.7602,4543.8,4543.7,3.64438239]
[1759736524224,0.7602,4543.8,4543.7,0.00198239]
[1759736525024,0.9812,4543.8,4543.7,0.22848239]
[1759736525224,0.9812,4543.8,4543.7,0.00198239]
[1759736526025,3.41847605,4543.8,4542.6,3.2078]
[1759736526231,0.5365,4542.7,4542.6,3.4343]
[1759736526628,0.5365,4542.7,4542.6,44.2343]
[1759736527133,0.5385176,4542.7,4542.6,44.23639327]
[1759736528333,0.5385176,4542.7,4542.6,44.00989327]
[1759736528633,0.5385176,4542.7,4542.6,40.80209327]
[1759736529225,0.7622176,4542.7,4542.6,0.00209327]
[1759736530534,0.7622176,4542.7,4542.6,0.22859327]
[1759736530934,0.7622176,4542.7,4542.6,0.00209327]
[1759736531327,0.7622176,4542.7,4542.6,0.22859327]
[1759736531834,0.7622176,4542.7,4542.6,0.00209327]
[1759736532431,3.67167154,4542.7,4542.6,0.00209327]
[1759736532628,0.7602,4541.7,4541.6,3.2078]
[1759736532930,0.9812,4541.7,4541.6,44.0078]
[1759736533129,0.9812,4541.7,4539.6,1.98192]
[1759736533130,0.323,4541.6,4540.3,0.17275525]
[1759736533328,0.323,4541.6,4539.0,11.99299]
[1759736533329,0.1293,4540.0,4539.4,0.3964]
[1759736533635,0.3503,4540.0,4539.6,0.39639]
[1759736533827,0.3503,4540.0,4539.4,0.00261993]
[1759736533828,0.4523,4539.5,4539.4,0.00261993]
[1759736534024,3.3892137,4539.5,4539.4,0.00261993]
[1759736534424,3.3892137,4539.5,4538.2,3.2078]
[1759736534425,0.323,4538.4,4538.2,3.2078]
[1759736534625,0.4523,4538.0,4537.7,3.2078]
[1759736534825,0.323,4537.9,4536.4,3.2078]
[1759736535025,3.2078,4536.9,4536.0,0.123]
[1759736535227,0.221,4537.1,4536.7,3.2078]
[1759736535429,3.2078,4536.8,4536.7,0.0019534]
[1759736535829,5.92110941,4536.8,4536.7,0.0019534]
[1759736536029,5.92110941,4536.8,4535.8,40.8]
[1759736536230,0.323,4536.1,4535.3,0.3318]
[1759736536430,0.3213,4536.5,4535.9,0.39671]
[1759736536629,0.323,4536.6,4536.0,40.8]
[1759736537232,0.323,4536.6,4536.0,41.1967]
[1759736537528,0.00180727,4536.6,4536.0,41.42027541]
[1759736537734,0.00180727,4536.6,4536.1,0.221]
[1759736537938,0.3135,4536.5,4536.2,0.3216]
[1759736538325,0.00180727,4536.6,4536.5,0.3216]
[1759736539131,0.3135,4536.4,4536.0,0.00257541]
[1759736539326,3.5213,4536.1,4536.0,0.00257541]
[1759736541330,0.3135,4535.4,4535.0,3.2078]
[1759736541630,0.221,4535.3,4535.0,44.0078]
[1759736541830,0.221,4535.3,4532.9,0.34366118]
[1759736541831,0.1308,4535.0,4532.9,0.34366118]
[1759736542039,0.1308,4533.5,4532.9,0.34366118]
[1759736542336,0.221,4533.5,4533.4,0.3216]
[1759736542530,0.1308,4534.5,4534.2,0.39686]
[1759736542531,0.3135,4534.5,4534.2,0.39686]
[1759736542736,0.3135,4534.7,4534.1,0.3216]
[1759736542932,0.3135,4534.7,4533.8,0.39689]
[1759736543237,0.3135,4534.7,4534.5,0.39683]
[1759736543432,3.2078,4534.7,4533.6,0.3216]
[1759736543637,3.4288,4534.7,4533.6,0.3216]
[1759736543828,3.4288,4534.7,4533.6,0.5426]
[1759736544031,3.4288,4534.7,4533.6,0.3216]
[1759736544233,3.5213,4534.2,4533.6,0.3216]
[1759736544640,3.5213,4534.2,4533.6,0.71851]
[1759736544938,0.3135,4534.1,4533.7,40.8]
[1759736545247,0.3135,4533.8,4532.9,3.23174595]
[1759736545437,0.3135,4533.6,4532.9,3.23174595]
[1759736545640,0.4443,4533.0,4532.9,0.02394595]
[1759736545837,0.44618449,4533.0,4532.9,0.02394595]
[1759736546033,0.31538449,4533.0,4532.9,0.02394595]
[1759736546340,0.00188449,4533.0,4532.9,40.82394595]
[1759736546529,0.00188449,4533.0,4532.9,41.14554595]
[1759736547538,0.00188449,4533.0,4532.9,49.35334595]
[1759736548039,3.6521,4534.0,4533.1,0.3216]
[1759736548240,3.6521,4534.0,4533.6,0.3216]
[1759736548435,0.3135,4534.0,4533.4,3.2078]
[1759736548642,0.3135,4534.0,4533.8,0.39689]
[1759736548939,0.3135,4534.0,4533.8,0.71849]
[1759736549140,0.31537519,4534.0,4533.8,0.39689]
[1759736549346,0.00187519,4534.0,4533.9,0.3216]
[1759736549537,0.00187519,4534.0,4533.9,3.5294]
[1759736549737,0.31537519,4534.0,4533.9,3.2078]
[1759736550437,0.00187519,4534.0,4533.9,3.2078]
[1759736550640,0.00187519,4534.0,4533.9,3.5294]
[1759736551533,0.31537519,4534.0,4533.9,3.2078]
[1759736551740,11.2747846,4534.0,4532.9,0.02394595]
[1759736551941,6.2747846,4534.0,4532.9,0.02394595]
[1759736552141,0.3135,4533.9,4532.9,0.02394595]
[1759736552539,0.3135,4533.9,4533.3,0.39693]
[1759736552753,0.3135,4533.9,4533.0,0.3216]
[1759736552941,0.71039,4533.9,4533.0,0.71856]
[1759736553132,0.3135,4533.7,4533.0,0.71856]
[1759736553335,0.3135,4533.7,4533.0,0.3216]
[1759736553537,3.56147519,4534.0,4533.0,0.71856]
[1759736553730,3.56147519,4534.0,4533.0,0.39696]
[1759736553934,0.70711,4533.7,4532.9,0.02394595]
[1759736554135,0.3102,4533.7,4532.9,0.02394595]
[1759736554442,0.3102,4533.7,4533.0,0.39696]
[1759736554639,0.3102,4533.7,4533.1,0.39695]
[1759736554939,3.56147519,4534.0,4533.5,0.39692]
[1759736555142,0.3102,4533.9,4533.4,0.39693]
[1759736555343,3.56147519,4534.0,4533.4,0.39693]
[1759736555538,3.56147519,4534.0,4533.6,0.39691]
[1759736555735,0.3102,4533.9,4533.6,0.39691]
[1759736555937,0.3102,4533.9,4533.4,0.39692]
[1759736556136,3.56147519,4534.0,4533.4,0.39692]
[1759736556343,3.56147519,4534.0,4533.0,41.1088]
[1759736556344,0.3102,4533.4,4533.2,0.39694]
[1759736556541,0.1325,4533.5,4533.0,41.19696]
[1759736556745,0.3535,4533.5,4533.0,40.8]
[1759736556940,0.3102,4533.1,4532.9,0.02394595]
[1759736557146,3.8715,4533.0,4532.9,0.02394595]
[1759736558443,11.71473627,4533.0,4532.9,0.02394595]
[1759736558743,0.52951,4532.5,4531.6,0.39708]
[1759736558934,0.52951,4532.5,4531.7,40.8]
[1759736558935,0.3102,4531.9,4531.7,40.8]
[1759736559137,0.3102,4531.8,4531.7,40.8]
[1759736559940,0.3102,4531.4,4530.7,0.3088]
[1759736560137,0.221,4531.3,4530.7,0.31153969]
[1759736560337,0.3102,4531.2,4530.8,40.8]
[1759736560539,0.221,4531.3,4530.8,40.8]
[1759736561135,0.3102,4531.2,4530.8,41.1088]
[1759736561340,0.5312,4531.5,4531.3,0.39711]
[1759736561546,0.221,4531.5,4531.4,0.3088]
[1759736561747,0.221,4531.5,4531.3,0.39711]
[1759736561942,0.5312,4531.5,4531.3,0.39711]
[1759736562144,0.3102,4531.4,4531.2,0.39712]
[1759736562540,0.3102,4532.0,4531.8,0.39706]
[1759736562846,3.4288,4532.1,4532.0,0.39705]
[1759736563045,3.2078,4532.1,4532.0,0.70585]
[1759736563646,3.4288,4532.8,4532.1,0.3088]
[1759736563847,3.4288,4532.8,4532.7,0.3088]
[1759736564348,3.2078,4532.8,4532.7,0.3088]
[1759736564549,0.221,4532.9,4532.8,0.70578]
[1759736564945,3.2078,4533.4,4533.3,0.70574]
[1759736566347,0.00187519,4534.0,4533.8,0.39689]
[1759736566547,0.00187519,4534.0,4533.9,0.3088]
[1759736566741,0.00187519,4534.0,4533.9,0.31105911]
[1759736567045,0.00187519,4534.0,4533.9,41.11105911]
[1759736567244,0.00187519,4534.0,4533.9,46.11105911]
[1759736567441,3.2078,4534.4,4534.1,0.3088]
[1759736567636,0.29031611,4535.8,4534.0,0.0987]
[1759736567637,3.2078,4535.8,4535.0,0.4318]
[1759736567842,3.2078,4535.8,4535.7,0.71893]
[1759736568047,0.3172,4536.1,4536.0,0.3967]
[1759736568242,3.4288,4536.4,4536.0,40.8]
[1759736568243,0.3172,4536.3,4536.0,40.8]
[1759736568437,3.4288,4536.4,4536.0,40.8]
[1759736568438,0.3172,4536.1,4536.0,40.8]
[1759736569343,0.3172,4536.1,4536.0,41.1967]
[1759736569543,0.3172,4536.1,4536.0,40.8]
[1759736569740,0.221,4536.3,4535.2,0.221]
[1759736569944,0.221,4536.3,4535.8,0.39671]
[1759736570146,0.3172,4536.2,4535.9,41.1222]
[1759736570350,0.221,4536.3,4535.9,41.1222]
[1759736570351,0.3172,4536.7,4536.5,0.39665]
[1759736570552,0.3172,4536.7,4536.3,0.3222]
[1759736570749,3.525,4536.9,4536.3,0.71887]
[1759736571151,3.525,4536.9,4536.3,0.3222]
[1759736571339,0.3172,4536.8,4536.6,0.39664]
[1759736571544,3.2078,4536.9,4536.3,0.3222]
[1759736571846,3.13301014,4536.9,4536.7,0.71883]
[1759736572054,3.525,4537.4,4537.3,0.39659]
[1759736572750,3.2298,4537.9,4537.8,0.39654]
[1759736572951,3.2298,4537.9,4537.6,0.39655]
[1759736573248,3.2298,4537.9,4536.9,3.2078]
[1759736573249,0.022,4537.9,4537.8,0.3222]
[1759736573551,0.022,4537.9,4537.8,0.5442]
[1759736574051,3.2078,4539.2,4538.0,0.0987]
[1759736574250,0.3172,4539.1,4538.4,0.3222]
[1759736574449,0.442,4538.5,4538.1,0.222]
[1759736574646,0.3172,4538.4,4538.0,0.39652]
[1759736574846,0.3172,4538.4,4537.3,3.2078]
[1759736575046,0.3172,4538.4,4537.8,0.39654]
[1759736575252,0.3468,4538.5,4537.7,0.222]
[1759736575547,0.3172,4538.4,4537.9,40.8]
[1759736575742,0.442,4538.5,4537.9,40.8]
[1759736575944,3.2078,4538.6,4538.1,0.3222]
[1759736576254,0.3172,4539.1,4538.8,0.3222]
[1759736576646,0.3172,4539.1,4538.6,0.222]
[1759736576948,3.2078,4539.2,4538.7,40.8]
[1759736577146,3.2078,4539.7,4539.5,0.39639]
[1759736577345,3.2078,4539.7,4539.6,0.3222]
[1759736577753,3.2078,4539.7,4539.6,41.1222]
[1759736577953,3.525,4539.7,4539.6,40.8]
[1759736579545,8.525,4539.7,4539.6,40.8]
[1759736579945,3.525,4539.7,4539.6,40.8]
[1759736580148,3.747,4539.7,4539.1,0.39643]
[1759736580547,3.747,4539.7,4538.8,0.3222]
[1759736580850,0.3172,4539.4,4538.5,0.39648]
[1759736581147,0.5392,4539.4,4538.6,0.61847]
[1759736581453,0.1248,4539.0,4538.3,0.3222]
[1759736581647,0.3172,4538.9,4538.3,0.222]
[1759736582146,0.3468,4539.0,4538.4,0.39649]
[1759736582345,0.3172,4538.9,4538.4,0.39649]
[1759736582547,0.3172,4538.9,4538.3,0.222]
[1759736582755,0.3172,4538.9,4538.4,0.3222]
[1759736582949,0.3172,4538.9,4538.3,0.5442]
[1759736583645,0.3172,4538.9,4538.7,0.39646]
[1759736583851,0.221,4539.1,4539.0,0.39644]
[1759736584052,0.221,4539.1,4539.0,0.71864]
[1759736584449,3.2078,4539.2,4539.1,0.3222]
[1759736584645,3.4288,4539.8,4538.7,3.751]
[1759736584848,0.71359,4539.6,4539.1,40.8]
[1759736585048,0.1248,4539.5,4539.1,40.8]
[1759736585450,0.3172,4539.4,4539.3,0.39641]
[1759736585645,0.3172,4539.4,4539.2,0.39641]
[1759736586451,0.3172,4539.4,4539.1,40.8]
[1759736586955,0.3172,4539.4,4539.2,0.39641]
[1759736587159,0.3172,4539.4,4539.2,0.71861]
[1759736587665,0.3172,4539.7,4539.3,0.7186]